Cogmind - Beta 12 *** ADVENTURER MODE // 2024.02.07 @ 15:14:44 Player: Baschiieep Result: Destroyed by G-34 Mercenary with Small Laser Performance ------------- Evolutions (1) 500 Regions Visited (2) 400 Robots Destroyed (27) 135 Value Destroyed (477) 477 Prototype IDs (0) 0 Alien Tech Used (0) 0 Bonus (0) 0 TOTAL SCORE: 1512 Bonus ------- None Cogmind --------- Core Integrity 0/400 Matter 290/300 Energy 78/100 System Corruption 0% Temperature Cool (6) Movement Core (200) Ox3 Location -9/Materials Parts ------- > --- POWER (1) -------- (None) > --- PROPULSION (3) --- (None) > --- UTILITY (2) ------ Medium Storage Unit Visual Processing Unit > --- WEAPON (3) ------- EM Pulse Gun > --- INVENTORY (10) --- Small Storage Unit Improved Terrain Scanner Medium Armor Plating Peak State ------------ > --- POWER ------------ Ion Engine > --- PROPULSION ------- Wheel Wheel > --- UTILITY ---------- Medium Storage Unit Seismic Detector > --- WEAPON ----------- EM Pulse Gun Assault Rifle > --- INVENTORY -------- Compact Wheel Small Storage Unit Improved Terrain Scanner Improved Terrain Scanner Light Assault Rifle Mining Laser [Rating: 8] Favorites ----------- Power Ion Engine Engine Ion Engine Propulsion Wheel Treads Light Treads Wheel Wheel Utility Medium Storage Unit Device Seismic Detector Storage Medium Storage Unit Processor Visual Processing Unit Weapon Assault Rifle Energy Gun Particle Gun Ballistic Gun Assault Rifle Special Weapon Mining Laser Build | -11 -10 -9 ------- Run | Jun Mat Mat Slots Evolved 2 | . . 2 Power . | . . . Propulsion 1 | . . 1 Utility . | . . . Weapon 1 | . . 1 Parts Attached 25 | 7 11 7 Power 5 | 1 2 2 Engine 5 | 1 2 2 Core . | . . . Reactor . | . . . Propulsion 5 | 2 2 1 Treads 1 | . . 1 Leg . | . . . Wheel 4 | 2 2 . Hover . | . . . Flight . | . . . Utility 4 | 2 2 . Device 1 | 1 . . Storage 2 | 1 1 . Processor 1 | . 1 . Hackware . | . . . Protection . | . . . Artifact . | . . . Weapon 11 | 2 5 4 Energy Gun 7 | 1 3 3 Energy Cannon . | . . . Ballistic Gun 2 | 1 1 . Ballistic Cannon . | . . . Launcher . | . . . Special Weapon 2 | . 1 1 Impact Weapon . | . . . Slashing Weapon . | . . . Piercing Weapon . | . . . Special Melee Weapon . | . . . Unidentified Prototypes . | . . . Parts Lost 13 | . 7 6 Power 3 | . 1 2 Propulsion 3 | . 3 . Utility 1 | . 1 . Weapon 6 | . 2 4 Highest Loss Streak 7 | . 7 3 To Critical Strikes 1 | . . 1 Average Slot Usage (%) 58 | . 79 42 Engine 8 | . 12 5 Treads 2 | . . 3 Wheel 8 | . 18 . Device 4 | . 10 . Storage 12 | . 14 11 Processor 7 | . 2 11 Energy Gun 5 | . 4 5 Ballistic Gun 7 | . 10 4 Special Weapon 2 | . 5 . Naked Turns . | . . . Heaviest Build 20 | 15 20 18 Greatest Support 26 | 20 26 20 Greatest Overweight (x) 5 | . 5 5 Average Overweight (x) 1 | . . 2 Largest Inventory Capacity 10 | 8 10 10 Average Capacity 9 | 7 9 10 Most Carried 8 | 3 8 8 Average Carried 4 | . 4 5 Final Capacity 10 | 8 10 10 Final Carried 6 | 1 6 3 Class Distribution -------------------- 100% | Mutant Dominant Class ---------------- Mutant | -10/Materials Mutant | -9/Materials Resources | -11 -10 -9 ----------- Run | Jun Mat Mat Matter Collected 545 | 303 156 86 Remotely . | . . . Salvage Created 851 | 174 402 275 Parts 47 | 14 21 12 Haulers Intercepted . | . . . Recyclers Shooed 2 | . 2 . Parts Field Recycled . | . . . Retrieved Matter . | . . . Parts Self-Destructed . | . . . Prevented . | . . . Kills | -11 -10 -9 ------- Run | Jun Mat Mat Combat Hostiles Destroyed 16 | . 9 7 Guns 16 | . 9 7 Classes Destroyed 8 | 3 3 2 Worker 3 | 1 2 . Builder 1 | . 1 . Tunneler 5 | 4 1 . Recycler 2 | 1 1 . Swarmer 7 | . 5 2 Grunt 5 | . 4 1 Duelist 1 | . . 1 Sentry 3 | . . 3 Best Kill Streak 8 | 4 8 3 Combat Bots Only 4 | . 4 3 Max Kills in Single Turn 1 | 1 1 1 Gunslinging . | . . . Exploded . | . . . Melee . | . . . Uniques/NPCs Destroyed . | . . . Combat | -11 -10 -9 -------- Run | Jun Mat Mat Damage Taken 1535 | . 569 966 Core 530 | . 129 401 Absorbed by Shields . | . . . Core Remaining (%) 74 | 100 48 . Volleys Fired 109 | 11 60 38 Largest 2 | 2 2 2 Hottest 145 | 60 130 145 Shots Fired 148 | 22 87 39 Gun 136 | 22 76 38 Cannon . | . . . Launcher . | . . . Special 12 | . 11 1 Kinetic 67 | 11 51 5 Thermal 37 | . 22 15 Explosive . | . . . Electromagnetic 44 | 11 14 19 Robot Hit Streak 20 | 7 20 18 Robot Miss Streak 4 | 1 4 1 Penetration Max . | . . . Secondary Targets 2 | . 2 . Max Gunslinging Chain 1 | . 1 . Shots Hit Robots 101 | 17 50 34 Core Hits 42 | 7 21 14 Critical Kills . | . . . Critical Parts Destroyed . | . . . Critical Strikes 1 | . 1 . Corrupt 1 | . 1 . Melee Attacks . | . . . Impact . | . . . Slashing . | . . . Piercing . | . . . Sneak Attacks . | . . . Combat Hostiles . | . . . Follow-up Attacks . | . . . Damage Inflicted 1373 | 297 621 455 Guns 1251 | 226 597 428 Cannons . | . . . Explosions 71 | 71 . . Melee . | . . . Ramming 3 | . . 3 Kinetic 501 | 104 357 40 Thermal 405 | 71 126 208 Explosive . | . . . Electromagnetic 464 | 122 138 204 Impact . | . . . Slashing . | . . . Piercing . | . . . Highest Corruption . | . . . Average Corruption . | . . . Corruption Purged . | . . . Corruption Blocked . | . . . Overload Shots . | . . . Overflow Damage 6 | 6 . . Projectiles . | . . . Explosions 6 | 6 . . Melee . | . . . Knockbacks . | . . . Impact . | . . . Kinetic . | . . . Secondary . | . . . Self-Inflicted Damage . | . . . Shots . | . . . Rammed 1 | . . 1 Targets Rammed 1 | . . 1 Kicked . | . . . Crushed . | . . . Highest Temperature 247 | . 141 247 Average Temperature 54 | . 33 99 Received Heat Transfer 540 | . 201 339 Siege Activations . | . . . Robots Corrupted . | . . . Combat Hostiles . | . . . Parts Fried 1 | . . 1 Impact Corruptions . | . . . Robots Melted . | . . . Combat Hostiles . | . . . Parts Melted 2 | . 1 1 Heat Transferred 903 | 100 309 494 Parts Sabotaged . | . . . Parts Stolen . | . . . Parts Stripped . | . . . Power Chain Reactions 1 | 1 . . Missiles Intercepted . | . . . Alert | -11 -10 -9 ------- Run | Jun Mat Mat Peak Influence 275 | 30 211 275 Initial 75 | . 16 75 Average 101 | 12 101 125 Maximum Alert Level 1 | . 1 1 Low Security (%) 94 | 100 93 94 Level 1 5 | . 6 5 Level 2 . | . . . Level 3 . | . . . Level 4 . | . . . Level 5 . | . . . High Security . | . . . Max Security . | . . . Squads Dispatched 1 | . 1 . Investigation 1 | . 1 . Extermination . | . . . Reinforcement . | . . . Assault . | . . . Garrison . | . . . Intercept . | . . . Searches Triggered . | . . . Construction Impeded . | . . . Haulers Reinforced . | . . . Active Scanning Responses . | . . . Cargo Convoy Interrupts . | . . . Stealth | -11 -10 -9 --------- Run | Jun Mat Mat Distress Signals 1 | . 1 . Communications Jammed . | . . . Distress Signals . | . . . Times Spotted 27 | . 13 14 Peak Tracking Total 6 | . 6 5 Tactical Retreats 2 | . 1 1 Traps | -11 -10 -9 ------- Run | Jun Mat Mat Traps Triggered 1 | . 1 . Indirectly . | . . . Trap Hack Attempts . | . . . Triggered . | . . . Disarmed . | . . . Reprogrammed . | . . . Reused . | . . . Traps Extracted . | . . . Installed . | . . . Triggered . | . . . Machines | -11 -10 -9 ---------- Run | Jun Mat Mat Machines Disabled . | . . . Max in Single Turn . | . . . Machines Repaired . | . . . Machines Sabotaged . | . . . Overloaded Fab Kills . | . . . Hacking | -11 -10 -9 --------- Run | Jun Mat Mat Machines Accessed 2 | . 1 1 Terminals 1 | . 1 . Fabricators . | . . . Repair Stations 1 | . . 1 Recycling Units . | . . . Scanalyzers . | . . . Garrison Access . | . . . Total Hacks 2 | . 1 1 Successful 2 | . 1 1 Failed . | . . . Catastrophic . | . . . Database Lockouts . | . . . Manual . | . . . Terminals 1 | . 1 . Fabricators . | . . . Repair Stations 1 | . . 1 Recycling Units . | . . . Scanalyzers . | . . . Garrison Access . | . . . Terminal Hacks 1 | . 1 . Alert Level 1 | . 1 . Fabricator Hacks . | . . . Repair Station Hacks 1 | . . 1 Scan Component 1 | . . 1 Recycling Unit Hacks . | . . . Scanalyzer . | . . . Garrison Access Hacks . | . . . Unauthorized Hacks . | . . . Terminals . | . . . Fabricators . | . . . Repair Stations . | . . . Recycling Units . | . . . Scanalyzers . | . . . Garrison Access . | . . . Data Cores Recovered . | . . . Used . | . . . Hacking Detections 1 | . . 1 Full Trace Events . | . . . Feedback Events . | . . . Feedback Blocked . | . . . Robot Schematics Acquired . | . . . Robots Built . | . . . Authchips . | . . . Time . | . . . Total Robot Build Rating . | . . . Part Schematics Acquired . | . . . Parts Built . | . . . Authchips . | . . . Time . | . . . Total Part Build Rating . | . . . Parts Repaired . | . . . Time . | . . . Parts Recycled . | . . . Recycled Matter . | . . . Retrieved Matter . | . . . Retrieved Components . | . . . Parts Scanalyzed . | . . . Part Schematics Acquired . | . . . Parts Damaged . | . . . Bothacking | -11 -10 -9 ------------ Run | Jun Mat Mat Used RIF Installer . | . . . Robots Hacked . | . . . Non-combat . | . . . Combat . | . . . Robot Hacks Applied . | . . . Relay Couplers Released . | . . . Fabnet Peak Effective % . | . . . Robots Rewired . | . . . Allies Hacked . | . . . Hacks Repelled . | . . . Allies | -11 -10 -9 -------- Run | Jun Mat Mat Total Allies . | . . . Largest Group . | . . . Highest-Rated Group . | . . . Highest-Rated Ally . | . . . Total Orders . | . . . Ally Attacks . | . . . Total Damage . | . . . Kills . | . . . Allies Corrupted . | . . . Allies Melted . | . . . Intel | -11 -10 -9 ------- Run | Jun Mat Mat Robot Analysis Total . | . . . Derelict Logs Recovered . | . . . Drone Launches . | . . . Drone Recoveries . | . . . Exploration | -11 -10 -9 ------------- Run | Jun Mat Mat Turns Passed 948 | 121 364 463 Spaces Moved 417 | 91 159 167 Core 122 | 5 31 86 Treads 81 | . . 81 Legs . | . . . Wheels 214 | 86 128 . Hover . | . . . Flight . | . . . Fastest Speed 50 | 50 80 160 Average Speed 149 | 78 111 223 Slowest Speed 300 | 80 300 300 Overloaded Moves . | . . . Propulsion Burnouts . | . . . Robots Hopped . | . . . Cave-ins Triggered . | . . . Exploration Rate (%) 17 | 3 26 23 Regions Visited 2 Branch Regions . Pre-discovered Areas . | . . . Known Exits Taken . | . . . Unknown Exits Taken 2 | 1 1 . Scrap Searched . | . . . Spaces Dug . | . . . Terrain Destroyed 2 | 2 . . Melee . | . . . Projectile . | . . . AOE 2 | 2 . . Terrain Rammed . | . . . Walls Destroyed . | . . . Machines Disabled . | . . . Actions | -11 -10 -9 --------- Run | Jun Mat Mat Total 571 | 117 237 217 Wait 2 | 2 . . Move 415 | 90 158 167 Hop . | . . . Pick Up 14 | 7 5 2 Fast Attach 7 | 1 4 2 Attach 12 | 6 2 4 Detach 2 | . 2 . Swap 6 | . 5 1 Drop 3 | . 1 2 Fire 109 | 11 60 38 Melee . | . . . Ram . | . . . Kick . | . . . Crush 1 | . . 1 Escape Stasis . | . . . Rewire . | . . . Trap . | . . . Miscellaneous . | . . . Route ------- -11/Junkyard -10/Materials -9/Materials History --------- Turn | Location | Event 12 | -11/Junkyard | Discovered new exit (range 15) 122 | -11/Junkyard | Entered Materials 308 | -10/Materials | Build established: Mutant 416 | -10/Materials | Lost 7 parts (1p3n1u2w) 427 | -10/Materials | Discovered new exit (range 15) 460 | -10/Materials | Core integrity fell below 50% 486 | -10/Materials | Entered another Materials area 486 | -9/Materials | Evolved 2 slots: Propulsion x1, Weapon x1 868 | -9/Materials | Core integrity fell below 50% 929 | -9/Materials | Core integrity fell below 20% 949 | -9/Materials | Destroyed by G-34 Mercenary with Small Laser Last Messages --------------- 00899_ Mining Laser destroyed. 00904_ Lgt. Treads severed. 00907_ Hvy. EM Pulse Gun destroyed. 00908_ R-06 Scavenger collects Lgt. Treads. 00911_ K-01 Serf destroyed. 00915_ K-01 Serf collects debris. 00916_ Acquired 10 matter. 00918_ K-01 Serf collects debris. 00920_ Ion Engine destroyed. 00925_ Acquired EM Pulse Gun. 00927_ M-13 Machinist repairs G-34 Mercenary. 00931_ Core Shielding fried. 00931_ L-31 Rogue destroyed. 00931_ K-01 Serf collects debris. 00937_ G-34 Mercenary destroyed. 00938_ K-01 Serf collects debris. 00938_ R-06 Scavenger collects Heat Sink. 00941_ K-01 Serf collects debris. 00941_ R-06 Scavenger collects Corrupted Imp. Aluminum Leg. 00942_ R-06 Scavenger collects Sml. Laser. Map ----- +----------------------------------------------------+ | ?????????????????????????????????????????????????? | | ?????????????????????????????????????????????????? | | ?????????????????????????????????????????????????? | | ?????????????????????????????????????????????????? | | ??????????????##?????????????????????????????????? | | ??????##??????# ?????????????????????????????????? | | ??????# ??????# ????????????????????????????????? | | ??????# ??????# ????????????????????????????????? | | ??????# ""????# ????????????????????????????????? | | ??????# ""????#[ ????????????????????????????????? | | ??????# ""????# !???????????????????????????????? | | ######? ????# ???????????????????????????????? | | ? ##/###??# ???????????????????????????????? | | ?? #??#! ???????????????????????????????? | | ???? #??# ??????????????????????????????? | | ?????? #??# ??????????????????????????????? | | ???????# #???? ?#######??????????????????????? | | ???????# #######+## #??????????????????????? | | ???????# #??????????????????????? | | ???????# k #??????????????????????? | | ???????# % % %% #??????????????????????? | | ???????# ########## #??????????????????????? | | ???????# #############m##??????????????????????? | | ???????+ + #g#########+### #???????? | | ?????? ##### """ # aa #???????? | | ????? ????# """"" + @ #???????? | | ????? ?????# """"" # g g #???????? | | ????""?????# """"" ####/###########+?????????? | | ???""??????# """ #??? ?????# ?????????? | | ?? "???????# #???? #????# """ ???????? | | ???????????########+####????[!#????# """ ??? ??? | | ################### #???????? #????# """ = # ??? | | ##????????#????# / ???? | | #?????????????# """ #????? | | #?????????????# """ ??????? | | ###########???# """????????? | | # #???# ??????????? | | ?## ## """ """ #???#+#???????????? | | ??# ## """ """ #???# #???????????? | | ??# ## """ """ ##### ########????? | | ??# #### ###### ## / #? | | ??# ????# #????# ## ##### ########????? | | ?????????# #????# ## #####+#####???????? | | ?????????# #???## ## ## #???????? | | ?????????# #???# ###+######## """ #???????? | | ?????????# #???# % ## """ [#???????? | | ?????????# #???# % % ## """ #???????? | | ?????????# #???# ## *!!#???????? | | ?????????# #???# ####### ## " " !!#???????? | | ?????????# #???#######?????# ## "R" !!!#???????? | +----------------------------------------------------+ Best States ------------- Heat Dissipation 28 Energy Generation 12 Energy Capacity 265 Matter Stores 300 Matter Capacity 300 Sight Range 18 Terrain Scan Density 10 Resistance: KI 20 Resistance: TH 20 Resistance: EX 20 Resistance: EM 20 Resistance: I 20 Resistance: S 20 Resistance: P 20 Evasion (%) 44 Recoil Reduction 1 Offensive Hacking 10 Item Schematics ----------------- None Robot Schematics ------------------ None Fabricated ------------ Nothing Alien Tech Used ----------------- None Achievements -------------- None Challenges ------------ None Game ------ Seed DeepStasisProjector Manual? 0 Play Time 00:53:45 Cumulative 4.6 hours Start 2023.08.09 @ 09:34:42 End 2024.02.07 @ 15:14:44 Sessions 5 Manual Loads 0 Difficulty Adventurer Special Mode None Game No. 5 Rogue 0 Adventurer 5 Explorer 0 Win Type - Total 0 Types 0/0/0/0/0/0/0/0/0 Lore% 1 Gallery% 5 Achievement% 7 Wizard Run 0 Options --------- ASCII 1 Keyboard 1 Movement Mouse Keybinds 0 Fullscreen 2 Font 14/SmallcapsGlow Map View 91x54 Tactical HUD 1 Map Filters NONE Filters NONE Steam 1 RUN: 928f199d-8382-47f6-b502-3b057a91f133